bitfinex/quotes_BTCUSD_20241103
["timestamp","ask_amount","ask_price","bid_price","bid_amount"]
[1730659519867,0.14579704,67830.0,67825.0,0.11665839]
[1730659520080,0.0158797,67830.0,67819.0,0.11665839]
[1730659520288,0.14579704,67829.0,67819.0,0.11665839]
[1730659520506,0.294867,67827.0,67819.0,0.11665839]
[1730659520731,0.294876,67825.0,67812.0,0.22114109]
[1730659520948,0.0158797,67830.0,67807.0,0.19595839]
[1730659520949,0.005,67823.0,67807.0,0.11665839]
[1730659521163,0.0158797,67830.0,67805.0,0.22114109]
[1730659521164,0.294911,67817.0,67805.0,0.22114109]
[1730659521370,0.005,67818.0,67808.0,0.00266909]
[1730659521371,0.14579704,67816.0,67808.0,0.00266909]
[1730659521591,0.004,67830.0,67813.0,0.11665839]
[1730659521805,0.006,67827.0,67826.0,0.26909439]
[1730659522020,0.22114109,67840.0,67827.0,0.005]
[1730659522235,0.22114109,67840.0,67826.0,0.11665839]
[1730659522236,0.22114109,67833.0,67828.0,0.147429]
[1730659522449,0.22114109,67840.0,67828.0,0.00266429]
[1730659522450,0.152423,67832.0,67828.0,0.00266429]
[1730659522665,0.005,67829.0,67828.0,0.00266429]
[1730659522880,0.005,67823.0,67809.0,4.506e-05]
[1730659523099,0.005,67818.0,67812.0,0.22114109]
[1730659523523,0.005,67818.0,67806.0,0.294956]
[1730659523524,0.005,67814.0,67805.0,0.36862109]
[1730659523735,0.005,67814.0,67805.0,0.22114109]
[1730659523968,0.14579704,67822.0,67809.0,0.11665839]
[1730659524186,0.15079704,67822.0,67810.0,0.29994]
[1730659524405,0.15079704,67822.0,67810.0,0.005]
[1730659524406,0.0150797,67821.0,67810.0,0.005]
[1730659524626,0.005,67816.0,67810.0,0.22114109]
[1730659524847,0.14579704,67815.0,67810.0,0.36861109]
[1730659525062,0.14579704,67815.0,67810.0,0.22114109]
[1730659525279,0.005,67821.0,67815.0,0.147457]
[1730659525534,0.14579704,67820.0,67811.0,0.22114109]
[1730659525805,0.22114109,67833.0,67811.0,0.22114109]
[1730659525806,0.005,67834.0,67830.0,0.147426]
[1730659526018,0.22114109,67833.0,67832.0,0.147423]
[1730659526243,0.22114109,67833.0,67821.0,0.11665839]
[1730659526244,0.005,67827.0,67821.0,0.11665839]
[1730659526509,0.14579704,67826.0,67822.0,0.36858509]
[1730659526715,0.005,67832.0,67825.0,0.147436]
[1730659526932,0.14579704,67831.0,67828.0,0.147429]
[1730659527187,0.14579704,67831.0,67823.0,0.000818]
[1730659527188,0.14579704,67831.0,67824.0,0.147439]
[1730659527412,0.16308816,67831.0,67824.0,0.29488]
[1730659528277,0.15779704,67831.0,67825.0,0.147438]
[1730659528510,0.15679704,67831.0,67828.0,0.14743]
[1730659528750,0.15679704,67831.0,67823.0,0.000818]
[1730659528751,0.005,67829.0,67823.0,0.000818]
[1730659529001,0.14579704,67828.0,67824.0,0.29488]
[1730659529262,0.14579704,67828.0,67823.0,0.000818]
[1730659529725,0.14579704,67828.0,67824.0,0.14744]
[1730659529979,0.14579704,67828.0,67827.0,0.147433]
[1730659530215,0.013,67831.0,67830.0,0.147427]
[1730659530446,0.027,67831.0,67830.0,0.147427]
[1730659530695,0.014,67831.0,67830.0,0.15011554]
[1730659530987,0.001636,67838.0,67837.0,0.147412]
[1730659531247,0.14743304,67838.0,67836.0,0.147413]
[1730659531489,0.0168793,67838.0,67837.0,0.00267085]
[1730659531742,0.001636,67838.0,67837.0,0.15008285]
[1730659532268,0.014636,67838.0,67837.0,0.15008285]
[1730659532776,0.014636,67838.0,67837.0,0.00267085]
[1730659533004,0.014636,67838.0,67825.0,0.294876]
[1730659533005,0.16543304,67838.0,67829.0,0.147428]
[1730659533260,0.16543304,67838.0,67828.0,0.22114109]
[1730659533261,0.14579704,67837.0,67828.0,0.36857109]
[1730659533501,0.14579704,67837.0,67829.0,0.147429]
[1730659533735,0.005,67833.0,67829.0,0.147429]
[1730659533963,0.005,67831.0,67825.0,0.22114109]
[1730659534207,0.14579704,67830.0,67825.0,0.22114109]
[1730659534648,0.14579704,67830.0,67821.0,0.11665839]
[1730659534649,0.14579704,67830.0,67824.0,0.294876]
[1730659534897,0.019636,67838.0,67835.0,0.147416]
[1730659535133,0.37793813,67837.0,67829.0,0.294859]
[1730659535347,0.03845741,67836.0,67830.0,0.147427]
[1730659535558,0.14579704,67835.0,67830.0,0.147427]
[1730659535768,0.14579704,67835.0,67828.0,0.294863]
[1730659535988,0.001636,67838.0,67837.0,0.147412]
[1730659536218,0.14743304,67838.0,67837.0,0.147412]
[1730659536934,0.005,67833.0,67821.0,0.11665839]
[1730659537148,0.004,67830.0,67824.0,0.22114109]
[1730659537385,0.005,67828.0,67821.0,0.147446]
[1730659537631,0.14579704,67827.0,67820.0,0.147448]
[1730659537858,0.14579704,67827.0,67824.0,0.00265131]
[1730659538081,0.14579704,67827.0,67826.0,0.147436]
[1730659538293,0.005,67837.0,67831.0,0.147425]
[1730659538511,0.009,67830.0,67829.0,0.147428]
[1730659538740,0.14579704,67836.0,67832.0,0.15006439]
[1730659538955,0.14579704,67836.0,67825.0,0.22114109]
[1730659539168,0.14579704,67836.0,67833.0,0.15006115]
[1730659539397,0.14579704,67836.0,67832.0,0.147422]
[1730659539641,0.001636,67838.0,67837.0,0.147412]
[1730659540137,0.14743304,67838.0,67837.0,0.00265459]
[1730659540356,0.16767634,67838.0,67831.0,0.147424]
[1730659540571,0.14579704,67837.0,67831.0,0.22114109]
[1730659540780,0.14579704,67837.0,67831.0,0.36856609]
[1730659540991,0.14579704,67837.0,67833.0,0.147419]
[1730659541232,0.14579704,67837.0,67831.0,0.20273567]
[1730659541477,0.17750507,67837.0,67832.0,0.147422]
[1730659541822,0.17750507,67837.0,67828.0,0.294863]
[1730659541928,0.14579704,67837.0,67831.0,0.147425]
[1730659542140,0.14879704,67837.0,67826.0,0.11665839]
[1730659542347,0.14879704,67837.0,67830.0,0.147426]
[1730659542553,0.15279704,67837.0,67831.0,0.147423]
[1730659542762,0.14879704,67837.0,67831.0,0.147423]
[1730659543013,0.14879704,67837.0,67824.0,0.51683509]
[1730659543014,0.005,67832.0,67824.0,0.000818]
[1730659543228,0.005,67825.0,67824.0,0.000818]
[1730659543697,0.152438,67825.0,67824.0,0.000818]
[1730659544142,0.005,67826.0,67824.0,0.000818]
[1730659544361,0.14579704,67825.0,67824.0,0.000818]
[1730659544587,0.011,67832.0,67825.0,0.294873]
[1730659544810,0.011,67832.0,67824.0,0.000818]
[1730659544811,0.14579704,67832.0,67826.0,0.11665839]
[1730659545020,0.14579704,67832.0,67831.0,0.147425]
[1730659545934,0.005,67836.0,67828.0,0.22114109]
[1730659546162,0.005,67840.0,67833.0,0.11665839]
[1730659546376,0.005,67840.0,67837.0,0.147412]
[1730659546588,0.005,67843.0,67837.0,0.147412]
[1730659546829,0.005,67842.0,67837.0,0.147412]
[1730659548549,0.003636,67838.0,67837.0,0.147412]
[1730659548787,0.009636,67838.0,67837.0,0.147412]
[1730659549000,0.003636,67838.0,67837.0,0.147412]
[1730659549562,0.006636,67838.0,67837.0,0.147412]
[1730659550324,0.15743304,67838.0,67828.0,0.22114109]
[1730659550596,0.005,67831.0,67828.0,0.22114109]
[1730659550835,0.14579704,67830.0,67828.0,0.22114109]
[1730659551089,0.14579704,67830.0,67826.0,0.147435]
[1730659551350,0.14579704,67830.0,67827.0,0.147433]
[1730659551589,0.14579704,67830.0,67824.0,0.000818]
[1730659552018,0.14579704,67830.0,67827.0,0.147432]
[1730659552223,0.14579704,67830.0,67825.0,0.294875]
[1730659552224,0.14579704,67830.0,67828.0,0.14743]
[1730659552465,0.14579704,67830.0,67824.0,0.000818]
[1730659552707,0.14579704,67830.0,67826.0,0.147435]
[1730659552938,0.14579704,67830.0,67827.0,0.147433]
[1730659553171,0.14579704,67830.0,67827.0,0.15007431]
[1730659553411,0.14579704,67830.0,67829.0,0.147429]
[1730659553631,0.15379704,67830.0,67829.0,0.147429]
[1730659553846,0.15379704,67830.0,67829.0,0.15008208]
[1730659554057,0.14579704,67830.0,67829.0,0.15008208]
[1730659554504,0.15379704,67830.0,67829.0,0.14508208]
[1730659554737,0.017,67830.0,67829.0,0.14508208]
[1730659554955,0.005,67836.0,67829.0,0.00265308]
[1730659555171,0.14579704,67835.0,67834.0,0.147418]
[1730659555412,0.001636,67838.0,67837.0,0.147412]
[1730659555861,0.001636,67838.0,67837.0,0.15006316]
[1730659556303,0.001636,67838.0,67837.0,0.33238701]
[1730659556519,0.001636,67838.0,67837.0,0.33443887]
[1730659557218,0.001636,67838.0,67837.0,0.33643887]
[1730659557511,0.003636,67838.0,67837.0,0.33643887]
[1730659557957,0.22114109,67851.0,67846.0,0.005]
[1730659558169,0.22114109,67851.0,67850.0,0.147383]
[1730659558397,0.22114109,67851.0,67847.0,0.29478]
[1730659558398,0.005,67855.0,67848.0,0.294776]
[1730659558610,0.14579704,67854.0,67850.0,0.00260608]
[1730659558823,0.14579704,67854.0,67849.0,0.00260632]
[1730659559029,0.14579704,67854.0,67851.0,0.00260584]
[1730659559241,0.14579704,67854.0,67848.0,0.294776]
[1730659559472,0.14579704,67854.0,67852.0,0.0026056]
[1730659559737,0.005,67853.0,67844.0,0.294789]
[1730659559986,0.005,67853.0,67842.0,0.22114109]
[1730659559987,0.002,67851.0,67850.0,0.147383]
[1730659560233,0.14779704,67851.0,67850.0,0.147383]
[1730659560471,0.14879704,67851.0,67846.0,0.294783]
[1730659560715,0.02261411,67858.0,67842.0,0.1474]
[1730659560716,0.005,67848.0,67842.0,0.1474]
[1730659560948,0.005,67846.0,67843.0,0.22114109]
[1730659561220,0.14579704,67847.0,67831.0,0.17937571]
[1730659561221,0.005,67843.0,67831.0,0.17937571]
[1730659561452,0.14579704,67845.0,67837.0,0.14741]
[1730659561453,0.005,67841.0,67837.0,0.14741]
[1730659561696,0.294783,67847.0,67824.0,0.000818]
[1730659561697,0.005,67849.0,67840.0,0.22114109]
[1730659561917,0.005,67849.0,67838.0,0.17937571]
[1730659561918,0.14579704,67849.0,67838.0,0.17937571]
[1730659562138,0.14579704,67849.0,67848.0,0.147388]
[1730659562629,0.0817,67855.0,67851.0,0.147381]
[1730659562849,0.006,67851.0,67845.0,0.17937571]
[1730659563081,0.006,67851.0,67850.0,0.147383]
[1730659563800,0.005,67858.0,67857.0,0.147368]
[1730659564019,0.006,67849.0,67848.0,0.36852909]
[1730659564243,0.006,67849.0,67848.0,0.5529048]
[1730659564459,0.08668502,67869.0,67848.0,0.5529048]
[1730659564460,0.04834251,67868.0,67849.0,0.005]
[1730659564681,0.001634,67851.0,67850.0,0.147383]
[1730659564910,0.015634,67851.0,67850.0,0.147383]
[1730659565137,0.007634,67851.0,67850.0,0.147383]
[1730659565375,0.007634,67851.0,67850.0,0.32675871]
[1730659565823,0.007634,67851.0,67850.0,0.5528998]
[1730659566068,0.001634,67851.0,67850.0,0.33175871]
[1730659566296,0.001634,67851.0,67850.0,0.33375871]
[1730659566732,0.001634,67851.0,67850.0,0.33175871]
[1730659566949,0.001634,67851.0,67850.0,0.32675871]
[1730659567410,0.002634,67851.0,67850.0,0.33275871]
[1730659567615,0.002634,67851.0,67850.0,0.32675871]
[1730659567850,0.002634,67851.0,67850.0,0.32930627]
[1730659567851,0.003634,67851.0,67850.0,0.32930627]
[1730659568060,0.004634,67851.0,67850.0,0.33030627]
[1730659568264,0.002634,67851.0,67850.0,0.32930627]
[1730659569163,0.001634,67851.0,67850.0,0.32930627]
[1730659570265,0.14743104,67851.0,67850.0,0.00254756]
[1730659570496,0.16767414,67851.0,67850.0,0.00254756]
[1730659570745,0.005,67849.0,67848.0,0.147388]
[1730659570985,0.005,67849.0,67838.0,0.294816]
[1730659570986,0.005,67845.0,67838.0,0.294816]
[1730659571213,0.14818304,67849.0,67840.0,0.51595209]
[1730659571422,0.00079704,67849.0,67843.0,0.147398]
[1730659571671,0.147389,67848.0,67842.0,0.147399]
[1730659571883,0.001634,67851.0,67842.0,0.147399]
[1730659571884,0.14579704,67847.0,67842.0,0.442203]
[1730659572094,0.14579704,67847.0,67846.0,0.147392]
[1730659572341,0.007634,67851.0,67841.0,0.11984874]
[1730659572604,0.007634,67851.0,67850.0,0.147383]
[1730659572898,0.001634,67851.0,67850.0,0.147383]
[1730659573150,0.015634,67851.0,67850.0,0.147383]
[1730659573412,0.001634,67851.0,67850.0,0.147383]
[1730659573661,0.013634,67851.0,67850.0,0.147383]
[1730659573898,0.001634,67851.0,67850.0,0.147383]
[1730659574125,0.010634,67851.0,67850.0,0.147383]
[1730659574585,0.001634,67851.0,67850.0,0.147383]
[1730659574826,0.006634,67851.0,67850.0,0.147383]
[1730659575969,0.010634,67851.0,67850.0,0.147383]
[1730659576434,0.147398,67844.0,67842.0,0.000817]
[1730659576652,0.147398,67844.0,67843.0,0.22114109]
[1730659576864,0.294772,67849.0,67842.0,0.000817]
[1730659577078,0.14579704,67848.0,67842.0,0.000817]
[1730659577296,0.147393,67846.0,67842.0,0.000817]
[1730659577507,0.29319004,67846.0,67842.0,0.148216]
[1730659577754,0.29319004,67846.0,67842.0,0.149218]
[1730659578014,0.442184,67845.0,67842.0,0.000817]
[1730659578235,0.29319004,67846.0,67844.0,0.22114109]
[1730659578448,0.001634,67851.0,67842.0,0.295619]
[1730659578665,0.14579704,67850.0,67842.0,0.000817]
[1730659578884,0.147395,67845.0,67842.0,0.000817]
[1730659579407,0.147395,67845.0,67843.0,0.00259447]
[1730659579626,0.147399,67843.0,67842.0,0.000817]
[1730659579848,0.29319604,67843.0,67842.0,0.000817]
[1730659580601,0.35329604,67843.0,67842.0,0.000817]
[1730659580811,0.35329604,67843.0,67835.0,0.0002939]
[1730659580812,0.195514,67836.0,67835.0,0.0002939]
[1730659581032,0.34131104,67836.0,67835.0,0.0002939]
[1730659581246,0.44443884,67836.0,67835.0,0.0002939]
[1730659582144,0.44643884,67836.0,67835.0,0.0002939]
[1730659582351,0.44443884,67836.0,67835.0,0.0002939]
[1730659582567,0.197538,67825.0,67824.0,0.000818]
[1730659582779,0.42433504,67825.0,67824.0,0.000818]
[1730659583952,0.43733504,67825.0,67824.0,0.000818]
[1730659584196,0.43533504,67825.0,67824.0,0.000818]
[1730659584419,0.56782654,67825.0,67824.0,0.000818]
[1730659585077,0.42833504,67825.0,67824.0,0.000818]
[1730659585279,0.41733504,67825.0,67824.0,0.000818]
[1730659585494,0.65247613,67825.0,67824.0,0.000818]
[1730659585705,0.65247613,67825.0,67804.0,0.22114109]
[1730659585706,0.147481,67805.0,67804.0,0.22114109]
[1730659586345,0.0481,67808.0,67802.0,0.000832]
[1730659586566,0.294959,67806.0,67802.0,0.000832]
[1730659586812,0.147482,67805.0,67802.0,0.000832]
[1730659587108,0.14579704,67806.0,67802.0,0.000832]
[1730659587345,0.006,67805.0,67802.0,0.000832]
[1730659587574,0.006,67805.0,67804.0,0.147483]
[1730659588008,0.006,67805.0,67802.0,0.000832]
[1730659588009,0.006,67805.0,67802.0,0.148318]
[1730659588214,0.006,67805.0,67802.0,0.000832]
[1730659588473,0.0481,67808.0,67804.0,0.147483]
[1730659588883,0.007,67806.0,67804.0,0.147483]
[1730659589095,0.147469,67811.0,67803.0,0.294968]
[1730659589311,0.14579704,67810.0,67803.0,0.294968]
[1730659589517,0.19003714,67810.0,67802.0,0.000832]
[1730659589730,0.147482,67805.0,67802.0,0.000832]
[1730659589936,0.33750914,67810.0,67804.0,0.36862309]
[1730659590158,0.011,67806.0,67805.0,0.15043046]
[1730659590366,0.0481,67818.0,67805.0,0.15043046]
[1730659590367,0.22114109,67816.0,67811.0,0.294935]
[1730659590617,0.22114109,67831.0,67809.0,0.17927579]
[1730659590853,0.22114109,67831.0,67806.0,0.294956]
[1730659590854,0.22114109,67821.0,67820.0,0.147449]
[1730659591115,0.22114109,67831.0,67830.0,0.147427]
[1730659591332,0.22114109,67831.0,67826.0,0.294872]
[1730659591549,0.147419,67834.0,67826.0,0.294872]
[1730659591764,0.147419,67834.0,67819.0,0.17927579]
[1730659591765,0.147433,67827.0,67822.0,0.147442]
[1730659591980,0.14579704,67833.0,67827.0,0.00272013]
[1730659592199,0.14579704,67833.0,67818.0,0.294906]
[1730659592200,0.294859,67829.0,67818.0,0.294906]
[1730659592436,0.294856,67830.0,67822.0,0.22114109]
[1730659592437,0.147436,67826.0,67822.0,0.22114109]
[1730659592641,0.14579704,67828.0,67821.0,0.147446]
[1730659592852,0.14579704,67828.0,67816.0,0.294912]
[1730659592853,0.147438,67825.0,67822.0,0.22114109]
[1730659593059,0.147437,67826.0,67820.0,0.147447]
[1730659593273,0.147438,67825.0,67821.0,0.147446]
[1730659593484,0.14579704,67828.0,67821.0,0.147446]
[1730659593722,0.294827,67837.0,67816.0,0.294912]
[1730659593959,0.007,67826.0,67823.0,0.294885]
[1730659594174,0.007,67826.0,67825.0,0.147436]
[1730659594857,0.007,67826.0,67825.0,0.15038452]
[1730659595066,0.007,67826.0,67825.0,0.147436]
[1730659595274,0.14579704,67837.0,67820.0,0.294898]
[1730659595481,0.22114109,67838.0,67827.0,0.147433]
[1730659595689,0.009,67828.0,67827.0,0.147433]
[1730659596126,0.36855109,67838.0,67833.0,0.14742]
[1730659596534,0.14741,67838.0,67833.0,0.14742]
[1730659596959,0.195502,67842.0,67833.0,0.294841]
[1730659597169,0.14739,67847.0,67842.0,0.147399]
[1730659597371,0.22114109,67844.0,67829.0,0.294859]
[1730659597585,0.14579704,67846.0,67843.0,0.00248412]
[1730659597800,0.125634,67851.0,67817.0,0.22114109]
[1730659597801,0.124,67828.0,67817.0,0.22114109]
[1730659598012,0.147453,67818.0,67817.0,0.22114109]
[1730659598481,0.147462,67814.0,67813.0,4.506e-05]
[1730659598894,0.147462,67814.0,67802.0,0.22197309]
[1730659598895,0.294929,67813.0,67802.0,0.22197309]
[1730659599104,0.14579704,67813.0,67805.0,0.147479]
[1730659599318,0.14579704,67813.0,67802.0,0.22697309]
[1730659599319,0.29326304,67813.0,67802.0,0.22697309]
[1730659599536,0.14579704,67813.0,67803.0,0.00294941]
[1730659599753,0.14579704,67813.0,67805.0,0.147481]
[1730659599962,0.23414109,67814.0,67804.0,0.294967]
[1730659600174,0.22114109,67821.0,67813.0,0.000817]
[1730659600386,0.22114109,67814.0,67813.0,0.000817]
[1730659600594,0.147462,67814.0,67813.0,0.000817]
[1730659602541,0.36698694,67814.0,67813.0,0.000817]
[1730659603173,0.30725904,67814.0,67813.0,0.000817]
[1730659605023,0.161462,67814.0,67813.0,0.000817]
[1730659605941,0.014,67814.0,67813.0,0.000817]
[1730659606380,0.014,67814.0,67813.0,0.148281]
[1730659607030,0.147454,67818.0,67813.0,0.000817]
[1730659607249,0.22114109,67820.0,67814.0,0.147461]
[1730659607470,0.147454,67818.0,67814.0,0.147461]
[1730659607693,0.147462,67814.0,67813.0,0.000817]
[1730659607916,0.29825904,67814.0,67813.0,0.000817]
[1730659609117,0.29325904,67814.0,67813.0,0.000817]
[1730659610015,0.30425904,67814.0,67813.0,0.000817]
[1730659611881,0.35245904,67814.0,67813.0,0.000817]
[1730659612105,0.54800125,67814.0,67813.0,0.000817]
[1730659614221,0.43165904,67814.0,67813.0,0.000817]
[1730659622613,0.011,67814.0,67813.0,0.000817]
[1730659623367,0.158462,67814.0,67813.0,0.000817]
[1730659624744,0.30425904,67814.0,67813.0,0.000817]
[1730659627447,0.30625904,67814.0,67813.0,0.000817]
[1730659627721,0.30625904,67814.0,67802.0,0.000832]
[1730659627722,0.149486,67803.0,67802.0,0.000832]
[1730659627953,0.41818304,67803.0,67802.0,0.000832]
[1730659629502,0.41818304,67803.0,67781.0,0.000834]
[1730659629503,0.272425,67785.0,67781.0,0.000834]
[1730659629732,0.46389212,67785.0,67781.0,0.000834]
[1730659629998,0.41822204,67785.0,67781.0,0.000834]
[1730659631472,0.005,67778.0,67767.0,0.0089879]
[1730659631740,0.005,67783.0,67764.0,0.0001]
[1730659631741,0.257568,67765.0,67764.0,0.0001]
[1730659632026,0.147568,67765.0,67764.0,0.0001]
[1730659633283,0.295097,67775.0,67765.0,0.295137]
[1730659633556,0.295097,67775.0,67764.0,0.0001]
[1730659633557,0.22114109,67773.0,67767.0,0.295128]
[1730659633814,0.22114109,67773.0,67766.0,0.147565]
[1730659633815,0.147554,67772.0,67766.0,0.147565]
[1730659634063,0.147554,67772.0,67764.0,0.0001]
[1730659634064,0.14579704,67773.0,67764.0,0.0001]
[1730659634307,0.014,67765.0,67764.0,0.15062112]
[1730659634827,0.014,67765.0,67764.0,0.14767]
[1730659635356,0.22114109,67780.0,67768.0,0.295124]
[1730659635658,0.22114109,67780.0,67764.0,0.0051]
[1730659635659,0.22114109,67780.0,67766.0,0.295133]
[1730659635887,0.012,67773.0,67772.0,0.147553]
[1730659636151,0.22114109,67780.0,67778.0,0.147539]
[1730659636420,0.22114109,67780.0,67768.0,0.005]
[1730659636658,0.22114109,67787.0,67786.0,0.147523]
[1730659637160,0.22114109,67794.0,67776.0,0.08]
[1730659637399,0.371273,67803.0,67777.0,0.22114109]
[1730659637400,0.36693813,67793.0,67777.0,0.22114109]
[1730659637664,0.14579704,67794.0,67793.0,0.147507]
[1730659638401,0.14579704,67794.0,67777.0,0.40041688]
[1730659638402,0.294957,67807.0,67795.0,0.295005]
[1730659638648,0.16791115,67800.0,67797.0,0.147497]
[1730659638896,0.16791115,67800.0,67795.0,0.295005]
[1730659639135,0.16791115,67800.0,67780.0,0.005]
[1730659639369,0.16791115,67800.0,67794.0,0.147504]
[1730659639370,0.31540415,67800.0,67794.0,0.147504]
[1730659639629,0.22114109,67799.0,67780.0,0.005]
[1730659639895,0.14579704,67798.0,67794.0,0.147504]
[1730659640118,0.36693813,67798.0,67794.0,0.147504]
[1730659640581,0.14579704,67798.0,67792.0,0.295018]
[1730659640823,0.22114109,67806.0,67788.0,0.22114109]
[1730659640824,0.147473,67809.0,67788.0,0.22114109]
[1730659641062,0.343522,67815.0,67804.0,0.147482]
[1730659641063,0.22114109,67805.0,67804.0,0.147482]
[1730659641319,0.36693813,67805.0,67804.0,0.147482]
[1730659641553,0.14579704,67805.0,67804.0,0.147482]
[1730659642062,0.14579704,67805.0,67787.0,0.005]
[1730659642319,0.15979704,67805.0,67802.0,0.147487]
[1730659642568,0.14579704,67805.0,67787.0,0.005]
[1730659642842,0.14579704,67805.0,67804.0,0.147483]
[1730659643077,0.15579704,67805.0,67804.0,0.147483]
[1730659643570,0.01,67805.0,67804.0,0.147483]
[1730659643799,0.22114109,67812.0,67808.0,0.147474]
[1730659644034,0.14579704,67811.0,67796.0,0.295002]
[1730659644317,0.22114109,67820.0,67803.0,0.22114109]
[1730659644578,0.22114109,67820.0,67819.0,0.147451]
[1730659644579,0.36693813,67820.0,67819.0,0.147451]
[1730659645078,0.14579704,67820.0,67819.0,0.147451]
[1730659645810,0.0776,67832.0,67816.0,0.294913]
[1730659645811,0.22114109,67827.0,67822.0,0.147444]
[1730659646332,0.0483,67839.0,67822.0,0.147444]
[1730659647093,0.21777709,67835.0,67819.0,0.2949]
[1730659647336,0.36357413,67835.0,67834.0,0.147418]
[1730659647838,0.44614309,67842.0,67841.0,0.147403]
[1730659647839,0.22114109,67842.0,67841.0,0.147403]
[1730659648304,0.147384,67850.0,67830.0,0.294854]
[1730659648305,0.294773,67849.0,67830.0,0.294854]
[1730659648549,0.294773,67849.0,67833.0,0.22114109]
[1730659648550,0.14743104,67843.0,67833.0,0.22114109]
[1730659648803,0.29483004,67843.0,67838.0,0.147409]
[1730659649067,0.14743104,67843.0,67839.0,0.147406]
[1730659649320,0.14743104,67843.0,67821.0,0.01]
[1730659649321,0.01,67842.0,67841.0,0.147401]
[1730659649580,0.29483104,67843.0,67821.0,0.005]
[1730659649852,0.29483104,67843.0,67827.0,0.294863]
[1730659649853,0.14579704,67842.0,67827.0,0.294863]
[1730659650106,0.14579704,67842.0,67833.0,0.22114109]
[1730659650107,0.001636,67835.0,67833.0,0.22114109]
[1730659650333,0.001636,67835.0,67834.0,0.147418]
[1730659652805,0.004636,67835.0,67834.0,0.147418]
[1730659653057,0.004636,67835.0,67834.0,0.152418]
[1730659653282,0.004636,67835.0,67834.0,0.37961504]
[1730659653523,0.004636,67835.0,67834.0,0.38161504]
[1730659653762,0.004636,67835.0,67834.0,0.37961504]
[1730659654933,0.001636,67835.0,67834.0,0.37961504]
[1730659655148,0.002636,67835.0,67834.0,0.38061504]
[1730659655360,0.002636,67835.0,67834.0,0.38261504]
[1730659655571,0.002636,67835.0,67834.0,0.38061504]
[1730659655783,0.002636,67835.0,67834.0,0.38261504]
[1730659656021,0.001636,67835.0,67834.0,0.38161504]
[1730659656241,0.001636,67835.0,67834.0,0.38661504]
[1730659656477,0.002636,67835.0,67834.0,0.48761504]
[1730659656713,0.002636,67835.0,67834.0,0.48661504]
[1730659658105,0.003636,67835.0,67834.0,0.48761504]
[1730659658339,0.001636,67835.0,67834.0,0.48461504]
[1730659658679,0.002636,67835.0,67834.0,0.48561504]
[1730659658861,0.002636,67835.0,67834.0,0.48461504]
[1730659659353,0.003636,67835.0,67834.0,0.48561504]
[1730659659565,0.003636,67835.0,67834.0,0.48761504]
[1730659659867,0.001634,67843.0,67842.0,0.157401]
[1730659660030,0.001634,67843.0,67842.0,0.63207383]
[1730659660261,0.22277509,67851.0,67850.0,0.152383]
[1730659660458,0.001634,67851.0,67850.0,0.47745583]
[1730659661641,0.001634,67851.0,67850.0,0.47945583]
[1730659661880,0.001634,67851.0,67850.0,0.47745583]
[1730659662113,0.002634,67851.0,67850.0,0.48945583]
[1730659662343,0.001634,67851.0,67850.0,0.47745583]
[1730659662599,0.002634,67851.0,67850.0,0.56715583]
[1730659662800,0.002634,67851.0,67850.0,0.56015583]
[1730659664398,0.002634,67851.0,67850.0,0.32665879]
[1730659664600,0.002634,67851.0,67850.0,0.147383]
[1730659664803,0.003634,67851.0,67850.0,0.155383]
[1730659665059,0.001634,67851.0,67850.0,0.147383]
[1730659665526,0.002634,67851.0,67850.0,0.154383]
[1730659665691,0.001634,67851.0,67850.0,0.147383]
[1730659666047,0.003634,67851.0,67850.0,0.147383]
[1730659667395,0.001634,67851.0,67850.0,0.147383]
[1730659667898,0.008634,67851.0,67850.0,0.148383]
[1730659668110,0.001634,67851.0,67850.0,0.147383]
[1730659668305,0.008634,67851.0,67850.0,0.148383]
[1730659668703,0.001634,67851.0,67850.0,0.147383]
[1730659669095,0.001634,67851.0,67847.0,0.29465398]
[1730659669096,0.005634,67851.0,67847.0,0.29465398]
[1730659669270,0.005634,67851.0,67831.0,0.22114109]
[1730659669271,0.076,67844.0,67831.0,0.22114109]
[1730659669454,0.14579704,67843.0,67838.0,0.22114109]
[1730659669655,0.294802,67842.0,67838.0,0.22114109]
[1730659669863,0.14579704,67841.0,67838.0,0.22114109]
[1730659670262,0.147402,67842.0,67831.0,0.22114109]
[1730659670514,0.14579704,67842.0,67836.0,0.294826]
[1730659670737,0.147404,67841.0,67832.0,0.294842]
[1730659670956,0.147404,67841.0,67831.0,0.22114109]
[1730659670957,0.14579704,67841.0,67831.0,0.22114109]
[1730659671186,0.14579704,67841.0,67839.0,0.147407]
[1730659671430,0.14579704,67841.0,67835.0,0.29483]
[1730659671431,0.14579704,67841.0,67838.0,0.147409]
[1730659671842,0.14579704,67841.0,67816.0,0.005]
[1730659672061,0.0498,67840.0,67828.0,0.22114109]
[1730659672271,0.1258,67836.0,67817.0,0.22114109]
[1730659672506,0.147427,67830.0,67829.0,0.22114109]
[1730659672759,0.147464,67813.0,67808.0,0.147473]
[1730659672974,0.147446,67821.0,67820.0,0.22114109]
[1730659673194,0.19002884,67821.0,67807.0,0.294952]
[1730659673405,0.147459,67816.0,67812.0,0.147466]
[1730659673636,0.14579704,67815.0,67814.0,0.147462]
[1730659674979,0.005,67816.0,67811.0,0.294937]
[1730659675207,0.005,67816.0,67815.0,0.14746]
[1730659675448,0.294867,67827.0,67811.0,0.294937]
[1730659675691,0.14744,67824.0,67819.0,0.147449]
[1730659675897,0.14579704,67823.0,67817.0,0.294907]
[1730659676141,0.14579704,67823.0,67811.0,0.294937]
[1730659676383,0.14579704,67823.0,67821.0,0.147445]
[1730659676620,0.1258,67828.0,67827.0,0.147433]
[1730659676869,0.27159704,67828.0,67810.0,0.442411]
[1730659677107,0.14579704,67827.0,67819.0,0.22114109]
[1730659677346,0.1258,67828.0,67827.0,0.147433]
[1730659677579,0.076,67836.0,67823.0,0.17927579]
[1730659677815,0.076,67836.0,67835.0,0.147416]